bitfinex-derivatives/quotes_SOLF0:USTF0_20250829
["timestamp","ask_amount","ask_price","bid_price","bid_amount"]
[1756442049131,9.86498058,217.72,217.62,5.0961306]
[1756442049335,7.28,217.71,217.61,12.7761306]
[1756442050435,7.28,217.71,217.62,5.0961306]
[1756442050829,7.28,217.71,217.63,5.0961306]
[1756442052439,7.28,217.71,217.62,5.0961306]
[1756442054143,2.55318629,217.69,217.62,5.0961306]
[1756442054436,2.55318629,217.66,217.61,5.0961306]
[1756442054740,2.55318629,217.66,217.6,5.0961306]
[1756442054936,7.28,217.65,217.58,5.0961306]
[1756442055842,2.55318629,217.63,217.58,5.0961306]
[1756442056143,7.28,217.62,217.57,5.0961306]
[1756442056337,7.28,217.62,217.55,5.0961306]
[1756442056840,0.03222021,217.61,217.55,5.0961306]
[1756442057035,2.55318629,217.6,217.53,12.7761306]
[1756442057239,7.28,217.59,217.53,7.68]
[1756442058035,7.28,217.59,217.52,5.0961306]
[1756442058244,7.28,217.59,217.51,5.0961306]
[1756442059038,0.03057288,217.57,217.51,5.0961306]
[1756442059341,0.03057288,217.57,217.5,5.0961306]
[1756442060243,0.03057288,217.57,217.49,12.7761306]
[1756442060443,0.03057288,217.57,217.51,7.68]
[1756442063138,0.03057288,217.57,217.52,7.68]
[1756442063442,0.03057288,217.57,217.51,7.64931689]
[1756442063641,0.03057288,217.57,217.52,7.68]
[1756442064743,0.03057288,217.57,217.54,2.55318629]
[1756442065948,0.03057288,217.57,217.55,7.68]
[1756442066345,0.03057288,217.57,217.51,5.0961306]
[1756442066346,0.03057288,217.57,217.53,7.68]
[1756442066850,0.03057288,217.57,217.52,7.68]
[1756442067044,0.03057288,217.57,217.51,2.55318629]
[1756442067452,0.03057288,217.57,217.49,12.7761306]
[1756442067846,0.03057288,217.57,217.49,7.68]
[1756442068553,0.03057288,217.57,217.5,7.68]
[1756442072342,7.28,217.56,217.47,162.3742113]
[1756442072544,7.28,217.56,217.47,7.68]
[1756442072741,7.28,217.53,217.45,5.0961306]
[1756442072946,7.28,217.53,217.43,7.68]
[1756442073342,0.03188784,217.5,217.43,7.68]
[1756442077151,0.03188784,217.5,217.44,0.02972542]
[1756442077351,0.03188784,217.5,217.45,7.53]
[1756442077656,0.03188784,217.5,217.44,0.02972542]
[1756442078346,0.03188784,217.5,217.44,7.55972542]
[1756442078551,0.03188784,217.5,217.49,7.53]
[1756442079651,7.25,217.61,217.49,7.99]
[1756442079956,7.25,217.61,217.52,2.55318629]
[1756442080150,7.25,217.61,217.53,7.53]
[1756442080452,308.72,217.65,217.56,7.53]
[1756442080956,308.72,217.65,217.58,0.03366207]
[1756442088360,7.25,217.64,217.58,0.03366207]
[1756442091056,116.22,217.63,217.58,0.03366207]
[1756442091253,7.25,217.62,217.58,0.03366207]
[1756442091958,7.25,217.62,217.58,7.56366207]
[1756442093258,116.2,217.64,217.58,0.03366207]
[1756442093461,9.80318629,217.63,217.58,0.03366207]
[1756442094558,116.2,217.62,217.58,0.03366207]
[1756442094760,7.25,217.61,217.58,0.03366207]
[1756442094961,116.2,217.62,217.58,0.03366207]
[1756442095467,7.25,217.61,217.58,0.03366207]
[1756442095666,116.2,217.62,217.58,0.03366207]
[1756442095867,7.25,217.61,217.58,0.03366207]
[1756442096060,116.2,217.62,217.58,0.03366207]
[1756442096364,7.25,217.62,217.58,0.03366207]
[1756442096571,116.2,217.61,217.58,0.03366207]
[1756442096768,7.25,217.6,217.58,0.03366207]
[1756442096969,116.2,217.59,217.58,0.03366207]
[1756442097266,7.25,217.59,217.58,0.03366207]
[1756442098161,7.25,217.56,217.49,5.0831793]
[1756442098361,123.43,217.56,217.49,5.0831793]
[1756442099167,7.25,217.56,217.49,5.0831793]
[1756442099460,116.21252464,217.55,217.49,5.0831793]
[1756442099764,0.03252464,217.55,217.49,5.0831793]
[1756442100266,7.25,217.54,217.48,5.0831793]
[1756442100661,7.25,217.54,217.47,5.0831793]
[1756442100961,9.80318629,217.54,217.43,5.0831793]
[1756442101162,42.55252464,217.55,217.41,7.53]
[1756442101163,7.25,217.5,217.41,7.53]
[1756442101366,7.25,217.5,217.43,5.0831793]
[1756442101664,7.25,217.5,217.42,5.0831793]
[1756442101862,0.0352859,217.49,217.45,7.53]
[1756442102162,0.0352859,217.49,217.48,7.53]
[1756442102358,51.41,217.55,217.44,2.55318629]
[1756442102556,0.03020645,217.49,217.44,7.63636559]
[1756442103261,0.03020645,217.49,217.45,7.53]
[1756442104667,0.03020645,217.49,217.44,7.63636559]
[1756442105862,0.03020645,217.49,217.45,7.53]
[1756442106164,0.03020645,217.49,217.46,7.62]
[1756442106671,0.03020645,217.49,217.47,7.62]
[1756442106971,0.03020645,217.49,217.46,5.0831793]
[1756442107171,0.03020645,217.49,217.48,5.0831793]
[1756442107369,0.03020645,217.49,217.48,7.62]
[1756442108274,0.03020645,217.49,217.47,5.0831793]
[1756442108467,0.03020645,217.49,217.45,5.0831793]
[1756442108667,0.03020645,217.49,217.46,7.62]
[1756442109675,0.03020645,217.49,217.44,5.0831793]
[1756442109876,0.03020645,217.49,217.46,7.62]
[1756442110576,0.03020645,217.49,217.46,12.7031793]
[1756442110877,0.03020645,217.49,217.47,7.62]
[1756442111076,0.03020645,217.49,217.46,7.62]
[1756442111379,0.03020645,217.49,217.45,5.0831793]
[1756442111568,0.03020645,217.49,217.46,5.0831793]
[1756442111768,0.03020645,217.49,217.45,5.0831793]
[1756442112477,0.03020645,217.49,217.46,7.62]
[1756442114075,0.03020645,217.49,217.45,7.62]
[1756442114279,0.03020645,217.49,217.44,5.0831793]
[1756442114579,7.60020645,217.49,217.42,5.0831793]
[1756442114780,7.60020645,217.49,217.41,12.7031793]
[1756442114981,7.57,217.47,217.41,7.62]
[1756442116377,7.57,217.47,217.37,12.7031793]
[1756442116573,2.55318629,217.45,217.37,7.62]
[1756442116774,7.57,217.44,217.37,7.62]
[1756442116974,0.03462367,217.43,217.37,7.62]
[1756442119387,7.57,217.42,217.38,0.0345531]
[1756442119595,0.03462367,217.43,217.3,7.62]
[1756442119596,10.12318629,217.39,217.3,7.62]
[1756442119797,2.55318629,217.36,217.3,7.62]
[1756442120186,10.12318629,217.36,217.26,7.62]
[1756442120895,0.03298505,217.33,217.26,7.62]
[1756442121501,2.58617134,217.33,217.26,7.62]
[1756442121691,2.55318629,217.3,217.2,7.62]
[1756442121895,0.03298505,217.33,217.14,123.80476896]
[1756442121896,2.55318629,217.27,217.16,10.17318629]
[1756442122099,7.57,217.26,217.16,10.17318629]
[1756442122399,0.03059991,217.24,217.17,7.62]
[1756442122887,2.55318629,217.47,217.19,2.55318629]
[1756442123095,0.03198845,217.23,217.19,2.55318629]
[1756442123497,2.55318629,217.31,217.2,7.62]
[1756442123798,0.02946176,217.23,217.2,7.62]
[1756442123995,7.57,217.33,217.2,7.62]
[1756442124196,7.57,217.33,217.23,7.62]
[1756442124397,0.03332903,217.24,217.23,7.62]
[1756442124598,7.57,217.33,217.23,10.17318629]
[1756442124798,2.55318629,217.36,217.27,7.62]
[1756442124995,7.57,217.38,217.27,7.62]
[1756442125200,0.03093764,217.34,217.27,7.62]
[1756442125997,0.03093764,217.34,217.3,7.62]
[1756442126395,0.03093764,217.34,217.29,47.05318629]
[1756442126988,0.03093764,217.34,217.3,7.62]
[1756442127190,0.03093764,217.34,217.29,47.05318629]
[1756442127595,0.03093764,217.34,217.3,7.62]
[1756442128194,0.03093764,217.34,217.24,2.55318629]
[1756442128400,0.03093764,217.34,217.25,7.62]
[1756442128596,7.57,217.35,217.25,7.62]
[1756442128901,0.03249052,217.32,217.25,7.62]
[1756442129294,0.03249052,217.32,217.25,10.17318629]
[1756442129600,0.03249052,217.32,217.26,7.62]
[1756442131598,0.03249052,217.32,217.26,123.82]
[1756442131900,0.03249052,217.32,217.26,7.62]
[1756442132300,7.57,217.31,217.23,42.26]
[1756442132694,2.55318629,217.3,217.19,316.6]
[1756442132894,7.57,217.31,217.19,432.8]
[1756442133097,2.55318629,217.3,217.19,432.8]
[1756442133292,7.57,217.31,217.19,432.8]
[1756442133502,0.03358312,217.27,217.19,432.8]
[1756442136100,0.03358312,217.27,217.19,425.18]
[1756442136301,0.03358312,217.27,217.2,7.62]
[1756442139506,0.03358312,217.27,217.23,4.03842768]
[1756442139701,0.03358312,217.27,217.24,116.2]
[1756442140008,0.03358312,217.27,217.25,7.13]
[1756442140212,7.45,217.36,217.25,7.13]
[1756442141609,0.03439871,217.33,217.25,7.13]
[1756442146313,0.03439871,217.33,217.26,45.42]
[1756442147219,0.03439871,217.33,217.27,7.13]
[1756442147516,7.45,217.42,217.32,11.16842768]
[1756442147711,7.45,217.42,217.33,85.84]
[1756442147906,7.45,217.49,217.34,7.13]
[1756442148713,7.45,217.49,217.39,0.03112438]
[1756442151421,7.45,217.49,217.4,7.13]
[1756442153015,7.45,217.49,217.39,0.03112438]
[1756442158324,7.45,217.49,217.4,7.13]
[1756442158523,7.45,217.49,217.4,9.6879316]
[1756442158722,7.45,217.49,217.4,7.13]
[1756442158915,7.45,217.49,217.39,0.03112438]
[1756442159119,7.45,217.47,217.39,0.03112438]
[1756442159418,7.45,217.47,217.36,7.13]
[1756442159822,7.45,217.47,217.41,0.03228983]
[1756442162025,7.45,217.44,217.41,0.03228983]
[1756442162425,7.91,217.44,217.41,0.03228983]
[1756442163127,7.45,217.42,217.27,4.03212824]
[1756442163327,7.45,217.4,217.27,7.13]
[1756442164028,7.45,217.4,217.26,279.00554608]
[1756442164029,7.45,217.36,217.26,162.92554608]
[1756442164428,0.03308709,217.35,217.26,162.92554608]
[1756442164923,7.45,217.34,217.23,7.13]
[1756442165126,7.45,217.32,217.23,7.13]
[1756442166027,0.03200825,217.3,217.23,7.13]
[1756442167724,7.67,217.41,217.3,7.14]
[1756442167928,7.67,217.41,217.31,116.08]
[1756442168924,7.67,217.41,217.34,0.03227022]
[1756442170028,38.14,217.52,217.34,0.03227022]
[1756442170029,4.03212824,217.49,217.34,0.03227022]
[1756442170226,4.03212824,217.39,217.34,0.03227022]
[1756442170527,7.67,217.38,217.25,11.17212824]
[1756442170727,4.03212824,217.39,217.34,0.03326663]
[1756442170928,7.67,217.38,217.34,0.03326663]
[1756442171231,7.67,217.38,217.25,11.17212824]
[1756442171434,4.03212824,217.39,217.34,0.02908759]
[1756442171623,7.67,217.38,217.25,11.17212824]
[1756442172026,4.03212824,217.39,217.34,0.03308889]
[1756442172222,7.67,217.38,217.25,11.17212824]
[1756442172629,7.67,217.38,217.34,0.03146237]
[1756442172829,7.67,217.38,217.25,7.14]
[1756442173232,7.67,217.38,217.34,0.03476671]
[1756442173435,7.67,217.38,217.25,7.14]
[1756442173829,7.67,217.38,217.34,0.03348546]
[1756442174031,7.67,217.38,217.25,7.14]
[1756442174335,7.67,217.38,217.34,0.03316965]
[1756442174634,7.67,217.38,217.25,7.14]
[1756442175025,7.67,217.38,217.34,0.02903397]
[1756442175233,7.67,217.38,217.25,7.14]
[1756442175634,7.67,217.38,217.34,0.03162761]
[1756442175929,7.67,217.38,217.25,7.14]
[1756442176437,7.67,217.38,217.34,0.02915168]
[1756442176731,7.67,217.38,217.25,7.14]
[1756442176932,7.67,217.38,217.34,0.02981898]
[1756442177135,13.79,217.46,217.25,7.14]
[1756442177332,11.70212824,217.39,217.25,7.14]
[1756442177632,11.70212824,217.39,217.34,0.03199223]
[1756442180534,7.67,217.4,217.34,0.03199223]
[1756442180736,4.03212824,217.39,217.34,0.03199223]
[1756442181436,85.6,217.41,217.34,0.03199223]
[1756442181437,7.67,217.4,217.34,0.03199223]
[1756442181731,4.03212824,217.38,217.34,0.03199223]
[1756442182039,7.67,217.37,217.34,0.03199223]
[1756442182234,4.03212824,217.38,217.34,0.03199223]
[1756442182936,7.67,217.37,217.34,0.03199223]
[1756442183339,7.67,217.37,217.25,7.14]
[1756442184038,4.03212824,217.34,217.25,7.14]
[1756442184241,7.67,217.33,217.25,7.14]
[1756442184435,0.029654,217.32,217.25,7.14]
[1756442185443,0.029654,217.32,217.2,7.14]
[1756442188147,4.03212824,217.3,217.2,7.14]
[1756442188747,7.67,217.29,217.2,7.14]
[1756442189042,0.03020141,217.27,217.2,7.14]
[1756442189549,7.67,217.26,217.15,7.14]
[1756442189748,11.70212824,217.26,217.15,7.14]
[1756442191648,11.70212824,217.26,217.13,4.599]
[1756442191949,7.67,217.21,217.12,4.599]
[1756442192348,0.0334404,217.19,217.12,4.599]
[1756442194251,7.67,217.18,217.12,4.599]
[1756442194449,7.67,217.18,217.11,7.14]
[1756442200649,7.67,217.18,217.03,7.45]
[1756442201357,0.03523554,217.13,217.04,2.56606571]
[1756442201558,0.03523554,217.13,217.05,7.45]
[1756442203257,0.03523554,217.13,217.08,7.45]
[1756442204856,0.03523554,217.13,217.07,2.56606571]
[1756442205056,0.03523554,217.13,217.08,7.45]
[1756442205258,7.61,217.25,217.11,7.45]
[1756442205455,7.61,217.25,217.14,7.45]
[1756442206255,2.56606571,217.28,217.14,7.45]
[1756442206458,2.56606571,217.28,217.16,7.45]
[1756442206658,2.56606571,217.28,217.18,7.45]
[1756442207060,2.56606571,217.29,217.18,7.45]
[1756442207861,2.56606571,217.29,217.21,0.03012607]
[1756442208361,309.14,217.33,217.21,0.03012607]
[1756442208362,7.61,217.27,217.21,0.03012607]
[1756442209257,309.14,217.33,217.21,0.03012607]
[1756442209465,7.61,217.23,217.21,0.03012607]
[1756442209856,2.56606571,217.24,217.21,0.03012607]
[1756442210454,7.61,217.23,217.21,0.03012607]
[1756442210963,2.56606571,217.24,217.21,0.03012607]
[1756442211358,7.61,217.25,217.21,0.03012607]
[1756442211554,4.04093645,217.26,217.21,0.03012607]
[1756442212455,7.61,217.25,217.21,0.03012607]
[1756442213163,4.04093645,217.26,217.21,0.03012607]
[1756442213361,7.61,217.25,217.21,0.03012607]
[1756442213563,4.04093645,217.26,217.21,0.03012607]
[1756442214062,7.61,217.28,217.21,0.03012607]
[1756442215167,7.61,217.27,217.21,0.03012607]
[1756442216660,2.3770268,217.26,217.21,0.03012607]
[1756442216856,4.04093645,217.26,217.21,0.03012607]
[1756442217062,7.61,217.25,217.21,0.03012607]
[1756442218466,2.37848094,217.24,217.21,0.03012607]
[1756442218669,7.61,217.25,217.21,0.03012607]
[1756442218864,7.61,217.23,217.21,0.03012607]
[1756442219069,7.61,217.25,217.21,0.03012607]
[1756442219570,2.37894543,217.24,217.21,0.03012607]
[1756442219777,7.61,217.25,217.21,0.03012607]
[1756442220072,7.61,217.23,217.21,0.03012607]
[1756442220367,7.61,217.21,217.09,7.45]
[1756442220768,7.61,217.19,217.09,7.45]
[1756442221674,0.03418265,217.16,217.09,7.45]
[1756442224177,7.61,217.26,217.09,7.91]
[1756442224471,7.61,217.26,217.13,7.45]
[1756442225572,7.61,217.26,217.17,7.47929844]
[1756442226576,309.14,217.33,217.17,7.47929844]
[1756442226770,4.04093645,217.31,217.17,7.47929844]
[1756442226973,10.06160855,217.3,217.17,7.45]
[1756442227277,7.68,217.3,217.22,7.3999767]
[1756442229379,7.68,217.3,217.22,0.0299767]
[1756442229580,4.04093645,217.27,217.22,0.0299767]
[1756442229776,11.72093645,217.23,217.22,0.0299767]
[1756442229982,14.10494965,217.23,217.22,0.0299767]
[1756442230181,14.56494965,217.23,217.13,7.37]
[1756442230382,7.68,217.21,217.08,149.74505526]
[1756442230681,7.68,217.21,217.09,7.37]
[1756442231082,7.68,217.19,217.09,7.37]
[1756442231784,7.68,217.17,217.09,7.37]
[1756442232782,2.3833384,217.16,217.09,7.37]
[1756442232982,7.68,217.17,217.09,7.37]
[1756442233179,2.38333555,217.16,217.09,7.37]
[1756442233379,4.04093645,217.16,217.03,7.37]
[1756442233585,10.06355102,217.15,217.03,7.37]
[1756442233780,2.38355102,217.14,217.03,7.37]
[1756442234088,7.68,217.15,217.03,7.37]
[1756442235884,2.38155037,217.14,217.03,7.37]
[1756442236085,7.68,217.15,217.03,7.37]
[1756442236389,0.03281972,217.11,217.06,0.03221914]
[1756442236681,7.68,217.1,217.06,0.03221914]
[1756442237181,7.68,217.1,217.06,7.40221914]
[1756442237488,7.68,217.1,217.06,0.03221914]
[1756442238185,7.68,217.1,217.06,7.40221914]
[1756442238687,0.03281972,217.11,217.07,7.37]
[1756442238888,0.03281972,217.11,217.06,0.03221914]
[1756442239284,0.03281972,217.11,217.07,7.37]
[1756442239491,0.03281972,217.11,217.06,0.03221914]
[1756442239685,0.03281972,217.11,217.07,7.37]
[1756442239886,0.03281972,217.11,217.06,0.03221914]
[1756442240086,0.03281972,217.11,217.07,7.37]
[1756442241389,7.68,217.1,217.06,0.03221914]
[1756442241590,0.03281972,217.11,217.06,7.40221914]
[1756442241901,7.71281972,217.11,217.06,7.40221914]
[1756442242996,7.71281972,217.11,217.06,0.03221914]
[1756442243192,7.71281972,217.11,217.07,7.37]
[1756442243392,0.03281972,217.11,217.07,7.37]
[1756442243599,0.03281972,217.11,217.06,0.03221914]
[1756442243792,0.03281972,217.11,217.07,7.37]
[1756442244698,0.03281972,217.11,217.06,0.03221914]
[1756442244891,0.03281972,217.11,217.07,7.37]
[1756442245090,0.03281972,217.11,217.06,0.03221914]
[1756442245294,0.03281972,217.11,217.07,7.37]
[1756442245492,0.03281972,217.11,217.06,0.03221914]
[1756442245894,0.03281972,217.11,217.07,7.37]
[1756442246696,0.03281972,217.11,217.06,0.03221914]
[1756442246891,0.03281972,217.11,217.07,7.37]
[1756442247101,0.03281972,217.11,217.06,0.03221914]
[1756442247302,0.03281972,217.11,217.07,7.37]
[1756442247800,2.59932767,217.11,217.06,0.03221914]
[1756442248009,2.56650795,217.09,217.06,0.03221914]
[1756442248212,10.24650795,217.09,217.06,0.03221914]
[1756442249407,7.68,217.09,217.06,0.03221914]
[1756442253111,0.03281972,217.11,217.07,7.37]
[1756442253513,7.71281972,217.11,217.07,7.37]
[1756442255213,2.56650795,217.09,217.06,0.03221914]
[1756442255620,0.03281972,217.11,217.06,0.03221914]
[1756442255815,10.27932767,217.11,217.06,7.40221914]
[1756442256011,7.68,217.1,217.06,0.03221914]
[1756442256321,2.59932767,217.11,217.06,0.03221914]
[1756442256616,7.42,217.1,217.06,0.03221914]
[1756442257215,2.59932767,217.11,217.06,0.03221914]
[1756442258019,7.42,217.1,217.06,0.03221914]
[1756442258216,2.59932767,217.11,217.06,0.03221914]
[1756442258414,7.42,217.1,217.06,0.03221914]
[1756442258721,2.59932767,217.11,217.06,0.03221914]
[1756442259117,7.42,217.1,217.06,0.03221914]
[1756442259320,2.59932767,217.11,217.06,0.03221914]
[1756442260220,7.42,217.1,217.06,0.03221914]
[1756442261016,2.59932767,217.11,217.06,0.03221914]
[1756442261217,7.42,217.1,217.06,0.03221914]
[1756442261417,2.59932767,217.11,217.06,0.03221914]
[1756442261820,7.42,217.1,217.06,0.03221914]
[1756442262024,2.59932767,217.11,217.06,0.03221914]
[1756442262824,7.42,217.1,217.06,0.03221914]
[1756442263118,2.59932767,217.11,217.06,0.03221914]
[1756442264125,10.01932767,217.11,217.07,7.32]
[1756442265124,7.42,217.1,217.07,7.32]
[1756442266525,7.42,217.1,217.06,0.03221914]
[1756442267927,2.59932767,217.11,217.06,0.03221914]
[1756442268124,7.42,217.1,217.06,0.03221914]
[1756442268324,2.59932767,217.11,217.06,0.03221914]
[1756442268519,7.42,217.1,217.06,0.03221914]
[1756442268718,2.59932767,217.11,217.06,0.03221914]
[1756442268928,7.42,217.1,217.06,0.03221914]
[1756442269235,2.59932767,217.11,217.06,0.03221914]
[1756442270926,7.42,217.1,217.06,0.03221914]
[1756442272032,2.59932767,217.11,217.06,0.03221914]
[1756442272625,7.42,217.1,217.06,0.03221914]
[1756442273723,2.59932767,217.11,217.06,0.03221914]
[1756442273930,7.42,217.1,217.06,0.03221914]
[1756442274229,2.59932767,217.11,217.06,0.03221914]
[1756442274432,7.42,217.1,217.06,0.03221914]
[1756442275626,2.59932767,217.11,217.06,0.03221914]
[1756442275827,7.42,217.09,217.06,0.03221914]
[1756442276027,7.42,217.09,217.06,7.35221914]
[1756442278522,7.42,217.09,217.06,0.03221914]
[1756442278728,7.42,217.1,217.06,0.03221914]
[1756442278924,2.59932767,217.11,217.06,0.03221914]
[1756442279128,2.38792081,217.1,217.06,0.03221914]
[1756442279327,7.42,217.1,217.06,7.35221914]
[1756442279528,2.56650795,217.1,217.06,0.03221914]
[1756442280034,7.42,217.09,217.06,0.03221914]
[1756442281529,2.56650795,217.1,217.06,0.03221914]
[1756442281729,7.42,217.08,217.06,0.03221914]
[1756442283637,0.03281972,217.11,217.07,7.32]
[1756442284437,7.45281972,217.11,217.07,7.32]
[1756442284733,7.42,217.1,217.07,7.32]
[1756442285335,0.03281972,217.11,217.07,7.32]
[1756442286233,0.03281972,217.11,217.06,0.03221914]
[1756442286432,2.56650795,217.22,217.1,7.14]
[1756442286631,2.56650795,217.22,217.11,7.14]
[1756442287834,2.56650795,217.22,217.14,7.17259633]
[1756442291338,7.46,217.23,217.14,7.17259633]
[1756442292442,108.21474798,217.34,217.21,2.56650795]
[1756442292640,10.02650795,217.33,217.22,7.14]
[1756442292945,7.46,217.26,217.17,7.14]
[1756442293242,7.46,217.26,217.25,0.03037966]
[1756442293444,7.46,217.26,217.17,7.14]
[1756442293841,7.46,217.26,217.23,0.03075969]
[1756442294242,2.56650795,217.29,217.23,0.03075969]
[1756442294441,7.46,217.28,217.23,0.03075969]
[1756442294634,2.56650795,217.29,217.23,0.03075969]
[1756442294836,7.46,217.28,217.23,0.03075969]
[1756442295039,7.46,217.33,217.23,0.03075969]
[1756442295233,7.46,217.31,217.23,0.03075969]
[1756442297342,7.46,217.34,217.24,7.14]
[1756442297544,7.46,217.34,217.27,7.14]
[1756442297739,7.46,217.38,217.29,2.56650795]
[1756442297944,7.46,217.38,217.3,7.14]
[1756442298140,2.56650795,217.46,217.33,2.56650795]
[1756442298350,7.46,217.45,217.34,7.14]
[1756442298549,2.56650795,217.44,217.34,7.14]
[1756442298852,39.18,217.5,217.37,0.03396337]
[1756442298853,2.56650795,217.38,217.37,0.03396337]
[1756442299045,2.56650795,217.38,217.27,2.56650795]
[1756442299545,7.46,217.37,217.28,7.14]
[1756442304951,7.46,217.35,217.26,134.09807122]
[1756442307058,2.56650795,217.38,217.25,7.14]
[1756442307355,7.46,217.37,217.25,7.14]
[1756442308255,7.46,217.37,217.26,2.56650795]
[1756442309252,309.32,217.51,217.29,2.56650795]
[1756442309557,7.46,217.44,217.35,2.56650795]
[1756442310358,7.46,217.44,217.36,7.14]
[1756442314666,7.46,217.44,217.38,2.56650795]
[1756442315060,7.46,217.49,217.39,7.14]
[1756442316361,7.46,217.49,217.39,9.70650795]
[1756442317166,7.68,217.47,217.36,60.81650795]
[1756442317767,2.56650795,217.48,217.36,10.07650795]
[1756442317967,7.68,217.47,217.36,10.07650795]
[1756442322575,99.92,217.57,217.4,7.51]
[1756442322777,7.68,217.52,217.4,7.51]
[1756442323776,7.68,217.52,217.42,2.56650795]
[1756442327079,7.68,217.5,217.37,2.56650795]
[1756442327376,7.68,217.47,217.37,2.56650795]
[1756442327777,7.68,217.47,217.34,2.56650795]
[1756442327973,7.68,217.44,217.34,2.56650795]
[1756442328874,7.68,217.44,217.35,7.51]
[1756442330278,7.68,217.44,217.37,2.56650795]
[1756442331677,7.68,217.44,217.38,7.51]
[1756442332080,7.68,217.44,217.37,2.56650795]
[1756442332278,7.68,217.44,217.34,7.51]
[1756442332478,7.68,217.44,217.35,2.56650795]
[1756442332679,2.56650795,217.43,217.32,2.56650795]
[1756442332878,7.68,217.42,217.32,2.56650795]
[1756442333378,7.68,217.42,217.33,7.51]
[1756442333977,7.68,217.42,217.35,2.56650795]
[1756442334179,7.68,217.46,217.36,7.51]
[1756442334379,7.68,217.46,217.39,7.51]
[1756442336384,2.56650795,217.51,217.39,7.51]
[1756442336584,7.68,217.5,217.41,2.56650795]
[1756442338086,7.68,217.48,217.39,7.51]
[1756442343084,7.68,217.48,217.41,2.56650795]
[1756442343286,7.68,217.48,217.42,7.51]
[1756442344087,2.56650795,217.48,217.35,7.51]
[1756442344285,7.68,217.46,217.35,7.51]
[1756442345088,2.56650795,217.45,217.35,7.51]
[1756442345290,7.68,217.43,217.31,10.07650795]
[1756442345490,7.68,217.45,217.35,7.51]
[1756442345691,7.68,217.45,217.38,2.56650795]
[1756442345890,7.68,217.45,217.38,10.07650795]
[1756442346088,0.03346872,217.42,217.39,7.51]
[1756442346289,0.03346872,217.42,217.39,7.44]
[1756442346692,0.03346872,217.42,217.38,2.56650795]
[1756442346894,0.03346872,217.42,217.41,10.00650795]
[1756442347593,0.03346872,217.42,217.41,7.44]
[1756442350296,0.03346872,217.42,217.39,7.44]
[1756442350495,7.36346872,217.42,217.38,0.03145189]
[1756442351098,7.33,217.41,217.38,0.03145189]
[1756442351409,0.03346872,217.42,217.38,0.03145189]
[1756442352096,7.33,217.41,217.38,0.03145189]
[1756442352796,0.03346872,217.42,217.38,0.03145189]
[1756442354002,7.33,217.41,217.38,0.03145189]
[1756442354203,0.03346872,217.42,217.38,0.03145189]
[1756442355203,7.33,217.4,217.38,0.03145189]
[1756442355596,2.56650795,217.41,217.38,0.03145189]
[1756442355802,7.33,217.4,217.38,0.03145189]
[1756442356007,2.56650795,217.41,217.38,0.03145189]
[1756442356408,10.97121872,217.4,217.27,7.44]
[1756442356608,7.33,217.4,217.27,7.44]
[1756442356810,2.56650795,217.38,217.27,7.44]
[1756442357014,7.33,217.37,217.27,7.44]
[1756442357711,0.03269648,217.34,217.27,7.44]
[1756442359409,0.03269648,217.34,217.29,2.56650795]
[1756442360509,0.03269648,217.34,217.3,7.44]
[1756442360814,0.03269648,217.34,217.29,2.56650795]
[1756442361203,0.03269648,217.34,217.3,7.44]
[1756442361407,0.03269648,217.34,217.29,2.56650795]
[1756442361615,7.33,217.47,217.33,7.44]
[1756442361815,7.33,217.47,217.37,2.56650795]
[1756442362015,7.33,217.44,217.36,7.44]
[1756442365215,2.56650795,217.42,217.31,10.00650795]
[1756442365516,7.33,217.41,217.31,10.00650795]